fUSD/lending_fUSD_20240523
["ID","MTS","AMOUNT","RATE_DAILY","PERIOD"]
[327781646,1716475692712,500.0,0.00022347,3]
[327781647,1716475693337,500.0,0.00022621,4]
[327781648,1716475693679,500.0,0.00022895,5]
[327781649,1716475693965,500.0,0.00023169,6]
[327781650,1716475694254,500.0,0.00023443,7]
[327781651,1716475694491,359.32095321,0.00022073,2]
[327781652,1716475694796,500.0,0.00021986,2]
[327781653,1716475695065,500.0,0.0002226,3]
[327781654,1716475695505,500.0,0.00022534,4]
[327781655,1716475698353,500.0,0.00022073,2]
[327781656,1716475698963,289.54623951,0.00022347,3]
[327781657,1716475702054,506.7,0.00022073,2]
[327781658,1716475702334,506.7,0.00022347,3]
[327781659,1716475702628,506.7,0.00022621,4]
[327781660,1716475703352,506.7,0.00022895,5]
[327781661,1716475703635,506.7,0.00023169,6]
[327781662,1716475703831,500.0,0.00022347,3]
[327781663,1716475703907,506.7,0.00023443,7]
[327781664,1716475704128,500.0,0.00022621,4]
[327781665,1716475704406,500.0,0.00022895,5]
[327781666,1716475705080,500.0,0.00023169,6]
[327781667,1716475705698,590.0,0.00023443,7]
[327781668,1716475706639,500.0,0.00022073,2]
[327781669,1716475706929,402.49808795,0.00022347,3]
[327781670,1716475707509,6772.86623355,0.000219,2]
[327781671,1716475707967,500.0,0.00022073,2]
[327781672,1716475708245,500.0,0.00022347,3]
[327781673,1716475708531,500.0,0.00022621,4]
[327781674,1716475708809,500.0,0.00022895,5]
[327781675,1716475709071,500.0,0.00023169,6]
[327781676,1716475709285,509.43849063,0.00022073,2]
[327781677,1716475709652,500.0,0.00023443,7]
[327781678,1716475711830,500.0,0.00022073,2]
[327781679,1716475711906,500.0,0.00022347,3]
[327781680,1716475711961,500.0,0.00022073,2]
[327781681,1716475712097,573.07512799,0.00022621,4]
[327781682,1716475712251,500.0,0.00022347,3]
[327781683,1716475712513,500.0,0.00022621,4]
[327781684,1716475712802,500.0,0.00022895,5]
[327781685,1716475713121,500.0,0.00023169,6]
[327781686,1716475713507,500.0,0.00023443,7]
[327781687,1716475716774,500.0,0.00022073,2]
[327781688,1716475717072,500.0,0.00022347,3]
[327781689,1716475717352,500.0,0.00022621,4]
[327781690,1716475717521,500.0,0.00022073,2]
[327781691,1716475717817,500.0,0.00022347,3]
[327781692,1716475718000,500.0,0.00022895,5]
[327781693,1716475718134,500.0,0.00022621,4]
[327781694,1716475718277,500.0,0.00023169,6]
[327781695,1716475718422,500.0,0.00022895,5]
[327781696,1716475718550,500.0,0.00023443,7]
[327781697,1716475718706,500.0,0.00023169,6]
[327781698,1716475719000,500.0,0.00023443,7]
[327781699,1716475719310,6141.37698121,0.00016695,5]
[327781700,1716475720448,500.0,0.00021986,2]
[327781701,1716475720992,500.0,0.0002226,3]
[327781702,1716475721629,538.8625322,0.00022534,4]
[327781703,1716475721775,532.72067197,0.00022073,2]
[327781704,1716475723652,782.6446222,0.00022346,2]
[327781705,1716475723732,1086.47,0.00022073,2]
[327781706,1716475724269,1086.47,0.00022347,3]
[327781707,1716475724671,1086.47,0.00022621,4]
[327781708,1716475724982,1086.47,0.00022895,5]
[327781709,1716475725280,1086.47,0.00023169,6]
[327781710,1716475725595,1086.47,0.00023443,7]
[327781716,1716475728763,500.0,0.00021986,2]
[327781717,1716475729028,500.0,0.0002226,3]
[327781718,1716475729286,500.0,0.00022534,4]
[327781719,1716475729544,155.44328337,0.00022808,5]
[327781720,1716475730554,500.0,0.00022073,2]
[327781721,1716475730850,500.0,0.00022347,3]
[327781722,1716475731114,500.0,0.00022621,4]
[327781723,1716475731392,500.0,0.00022895,5]
[327781724,1716475731679,500.0,0.00023169,6]
[327781725,1716475731982,500.0,0.00023443,7]
[327781726,1716475732486,500.0,0.00021986,2]
[327781727,1716475732543,507.29551761,0.00022073,2]
[327781728,1716475732607,500.0,0.0002226,3]
[327781729,1716475732904,176.65585702,0.00022534,4]
[327781730,1716475738879,507.45821216,0.00022073,2]
[327781731,1716475740328,1000.0,0.00022646,2]
[327781732,1716475744234,533.06454032,0.00022073,2]
[327781733,1716475744588,500.0,0.00021986,2]
[327781734,1716475745215,500.0,0.0002226,3]
[327781735,1716475745502,500.0,0.00022534,4]
[327781736,1716475746700,500.0,0.00022073,2]
[327781737,1716475747333,500.0,0.00022347,3]
[327781738,1716475747631,500.0,0.00022621,4]
[327781739,1716475747938,570.90211453,0.00022895,5]
[327781740,1716475748240,500.0,0.00022808,5]
[327781741,1716475748772,500.0,0.00023082,6]
[327781742,1716475748880,509.63817866,0.00022073,2]
[327781743,1716475748976,500.0,0.00023356,7]
[327781747,1716475758128,511.8365451,0.00022073,2]
[327781748,1716475758940,500.0,0.00022073,2]
[327781749,1716475759225,500.0,0.00022347,3]
[327781750,1716475760560,500.0,0.00022073,2]
[327781751,1716475760846,505.45219517,0.00022347,3]
[327781752,1716475765503,500.0,0.00022073,2]
[327781753,1716475765802,500.0,0.00022347,3]
[327781754,1716475765860,500.0,0.00022073,2]
[327781755,1716475766065,500.0,0.00022347,3]
[327781756,1716475766132,500.0,0.00022621,4]
[327781757,1716475766395,500.0,0.00022621,4]
[327781758,1716475766472,500.0,0.00022895,5]
[327781759,1716475766720,500.0,0.00022895,5]
[327781760,1716475766779,500.0,0.00023169,6]
[327781761,1716475767001,500.0,0.00023169,6]
[327781762,1716475767070,500.0,0.00023443,7]
[327781763,1716475767274,500.0,0.00023443,7]
[327781764,1716475768779,500.0,0.00022073,2]
[327781765,1716475769059,500.0,0.00022347,3]
[327781766,1716475769158,2890.06,0.0002265,2]
[327781767,1716475769697,500.0,0.00022621,4]
[327781768,1716475769982,500.0,0.00022895,5]
[327781769,1716475770271,150.21507092,0.00023169,6]
[327781770,1716475772909,243.53,0.00022073,2]
[327781771,1716475773320,170.16,0.0002265,2]
[327781772,1716475774594,1672.47,0.00022073,2]
[327781773,1716475774893,1672.47,0.00022347,3]
[327781774,1716475775310,500.0,0.00022073,2]
[327781775,1716475775520,1672.47,0.00022621,4]
[327781776,1716475775584,500.0,0.00022347,3]
[327781777,1716475775794,1672.47,0.00022895,5]
[327781778,1716475775990,500.0,0.00022621,4]
[327781779,1716475776106,1672.47,0.00023169,6]
[327781780,1716475776270,500.0,0.00022895,5]
[327781781,1716475776393,1672.47,0.00023443,7]
[327781782,1716475776580,500.0,0.00023169,6]
[327781786,1716475776875,500.0,0.00023443,7]
[327781787,1716475777678,150.0,0.000235,3]
[327781788,1716475778134,150.0,0.00023,3]
[327781789,1716475778535,150.0,0.000225,3]
[327781790,1716475778648,516.95475664,0.00021986,2]
[327781791,1716475778883,534.06836934,0.00022073,2]
[327781792,1716475779138,150.0,0.00022,3]
[327781793,1716475779539,150.0,0.000215,3]
[327781794,1716475779666,500.0,0.00022073,2]
[327781795,1716475779738,500.0,0.00022073,2]
[327781796,1716475780039,500.0,0.00022347,3]
[327781797,1716475780126,150.0,0.00021,2]
[327781798,1716475780195,516.18969613,0.00022347,3]
[327781799,1716475780278,162.06922257,0.00022621,4]
[327781800,1716475780531,150.0,0.000205,2]
[327781801,1716475783569,500.0,0.00022073,2]
[327781802,1716475784642,500.0,0.00022347,3]
[327781803,1716475784736,500.0,0.00022621,4]
[327781804,1716475784823,200.62290041,0.00021918,7]
[327781805,1716475785256,500.0,0.00022895,5]
[327781806,1716475785538,635.60859565,0.00022073,2]
[327781807,1716475785605,500.0,0.00023169,6]
[327781808,1716475785843,500.0,0.00023443,7]
[327781809,1716475787672,200.0,0.00022648,2]
[327781810,1716475787880,500.0,0.00021986,2]
[327781811,1716475788487,500.0,0.0002226,3]
[327781812,1716475789078,500.0,0.00022534,4]
[327781813,1716475789670,500.0,0.00022808,5]
[327781814,1716475790576,500.0,0.00023082,6]
[327781815,1716475790852,165.00839849,0.00023356,7]
[327781816,1716475797268,500.0,0.00022073,2]
[327781817,1716475797493,500.0,0.00022347,3]
[327781818,1716475797786,500.0,0.00022621,4]
[327781819,1716475798380,500.0,0.00022895,5]
[327781820,1716475798743,206.49098759,0.00023169,6]
[327781824,1716475804238,568.29689928,0.00021986,2]
[327781825,1716475805156,5756.52374239,0.00018754,2]
[327781826,1716475806914,2000.0,0.000235,2]
[327781827,1716475807650,500.0,0.00022073,2]
[327781828,1716475807993,500.0,0.00022347,3]
[327781829,1716475808298,510.93451239,0.00022621,4]
[327781830,1716475813478,500.0,0.00021986,2]
[327781831,1716475813760,648.64830781,0.0002226,3]
[327781832,1716475814872,200.0,0.000235,2]
[327781833,1716475815525,500.0,0.00022073,2]
[327781834,1716475815609,500.0,0.00022347,3]
[327781835,1716475815818,500.0,0.00022621,4]
[327781836,1716475816085,494.78878576,0.00022895,5]
[327781837,1716475818445,500.0,0.00022073,2]
[327781838,1716475818524,208.57,0.00020889,2]
[327781839,1716475818732,500.0,0.00022347,3]
[327781840,1716475819082,500.0,0.00022621,4]
[327781841,1716475819324,500.0,0.00022895,5]
[327781842,1716475819595,500.0,0.00023169,6]
[327781843,1716475819886,500.0,0.00023443,7]
[327781844,1716475822376,500.0,0.00021986,2]
[327781845,1716475822634,500.0,0.0002226,3]
[327781846,1716475823440,500.0,0.00022534,4]
[327781847,1716475823729,500.0,0.00022808,5]
[327781848,1716475824022,500.0,0.00023082,6]
[327781849,1716475824475,500.0,0.00023356,7]
[327781850,1716475824646,9156.94527158,0.00022,2]
[327781851,1716475829111,500.0,0.00022073,2]
[327781852,1716475829166,500.0,0.00021986,2]
[327781853,1716475829391,500.0,0.00022347,3]
[327781854,1716475829442,500.0,0.0002226,3]
[327781855,1716475829686,500.0,0.00022621,4]
[327781856,1716475830014,500.0,0.00022895,5]
[327781857,1716475830068,500.0,0.00022534,4]
[327781858,1716475830251,500.0,0.00023169,6]
[327781859,1716475830312,500.0,0.00022808,5]
[327781860,1716475830498,500.0,0.00023443,7]
[327781861,1716475830576,500.0,0.00023082,6]
[327781862,1716475830867,500.0,0.00023356,7]
[327781863,1716475831430,779.22,0.00022073,2]
[327781871,1716475831717,779.22,0.00022347,3]
[327781879,1716475831995,779.22,0.00022621,4]
[327781880,1716475832180,-200.54800414,0.00023525,2]
[327781882,1716475832189,-900.46194117,0.00023529,2]
[327781884,1716475832202,-2746.53805883,0.00023529,2]
[327781887,1716475832212,-6772.86623355,0.0002353,2]
[327781891,1716475832221,-5512.46730855,0.00023531,2]
[327781894,1716475832230,-12988.30745391,0.00023545,2]
[327781897,1716475832242,-153.62237174,0.00023545,2]
[327781900,1716475832252,-182.72172165,0.00023554,2]
[327781903,1716475832262,-305.37480479,0.0002356,2]
[327781905,1716475832272,-500.0,0.0002356,2]
[327781907,1716475832282,-499.99,0.00023561,2]
[327781908,1716475832290,-255.05889874,0.00023578,2]
[327781909,1716475832299,-225.02723784,0.0002358,2]
[327781910,1716475832312,-159.2,0.00023598,2]
[327781911,1716475832321,-150.0,0.000236,2]
[327781912,1716475832332,-150.0,0.000236,2]
[327781913,1716475832342,-42674.88757177,0.000236,2]
[327781914,1716475832351,-510.21660313,0.00023608,2]
[327781915,1716475832360,-154.66364069,0.00023611,2]
[327781916,1716475832369,-150.0,0.00023611,2]
[327781917,1716475832378,-150.0,0.00023613,2]
[327781918,1716475832387,-451.3067,0.00023617,2]
[327781919,1716475832396,-613.27998301,0.00023618,2]
[327781920,1716475832407,-151.20968612,0.00023618,2]
[327781921,1716475832416,-1283.98392734,0.0002362,2]
[327781922,1716475832426,-1500.0,0.00023621,2]
[327781923,1716475832435,-150.0,0.00023621,2]
[327781924,1716475832444,-150.0,0.00023626,2]
[327781925,1716475832454,-1500.0,0.00023629,2]
[327781926,1716475832464,-500.0,0.0002363,8]
[327781927,1716475832473,-500.0,0.0002363,8]
[327781928,1716475832483,-500.0,0.0002363,8]
[327781929,1716475832492,-1712.16,0.0002363,8]
[327781930,1716475832501,-500.0,0.0002363,8]
[327781931,1716475832511,-1769.65,0.0002363,8]
[327781932,1716475832521,-500.0,0.0002363,8]
[327781933,1716475832531,-1561.8,0.0002363,8]
[327781934,1716475832541,-550.58,0.0002363,8]
[327781935,1716475832551,-604.25969074,0.0002363,8]
[327781936,1716475832563,-500.0,0.0002363,8]
[327781937,1716475832572,-500.0,0.0002363,8]
[327781938,1716475832582,-803.52,0.0002363,8]
[327781939,1716475832592,-500.0,0.0002363,8]
[327781940,1716475832603,-500.0,0.0002363,8]
[327781941,1716475832612,-500.0,0.0002363,8]
[327781942,1716475832623,-500.0,0.0002363,8]
[327781943,1716475832633,-500.0,0.0002363,8]
[327781944,1716475832643,-150.0,0.0002363,2]
[327781945,1716475832652,-500.0,0.0002363,8]
[327781946,1716475832662,-259.61654385,0.0002363,8]
[327781947,1716475832671,-150.0,0.00023632,2]
[327781948,1716475832680,-150.0,0.00023632,2]
[327781949,1716475832689,-559.06761316,0.00023634,2]
[327781952,1716475832699,-300.0,0.00023635,2]
[327781954,1716475832709,-150.0,0.00023643,2]
[327781957,1716475832719,-1000.0,0.00023643,2]
[327781959,1716475832728,-1000.0,0.00023643,2]
[327781961,1716475832738,-1000.0,0.00023643,2]
[327781963,1716475832746,-1000.0,0.00023643,2]
[327781965,1716475832756,-1000.0,0.00023643,2]
[327781967,1716475832766,-1000.0,0.00023643,2]
[327781968,1716475832775,-1000.0,0.00023643,2]
[327781969,1716475832785,-1000.0,0.00023643,2]
[327781970,1716475832795,-1000.0,0.00023643,2]
[327781971,1716475832804,-1000.0,0.00023643,2]
[327781972,1716475832815,-1000.0,0.00023643,2]
[327781973,1716475832825,-1000.0,0.00023643,2]
[327781974,1716475832834,-1000.0,0.00023643,2]
[327781975,1716475832842,-1000.0,0.00023643,2]
[327781976,1716475832851,-1000.0,0.00023643,2]
[327781977,1716475832861,-1000.0,0.00023643,2]
[327781978,1716475832870,-1000.0,0.00023643,2]
[327781979,1716475832880,-1000.0,0.00023643,2]
[327781980,1716475832890,-1000.0,0.00023643,2]
[327781981,1716475832899,-1000.0,0.00023643,2]
[327781982,1716475832909,-1043.0,0.00023643,2]
[327781983,1716475832918,-150.0,0.00023644,2]
[327781984,1716475832928,-150.0,0.00023644,2]
[327781985,1716475832937,-150.0,0.00023645,2]
[327781986,1716475833182,-300.0,0.00023646,2]
[327781987,1716475833196,-150.0,0.00023649,2]
[327781988,1716475833206,-255.05889874,0.0002365,2]
[327781989,1716475833217,-300.0,0.00023653,2]
[327781990,1716475833228,-169.75838449,0.00023656,2]
[327781991,1716475833238,-150.0,0.00023656,2]
[327781992,1716475833248,-195.05027,0.0002366,2]
[327781993,1716475833258,-1500.0,0.00023662,2]
[327781994,1716475833269,-1500.0,0.00023663,2]
[327781995,1716475833279,-150.0,0.00023665,2]
[327781996,1716475833288,-1444.69704393,0.0002367,2]
[327781997,1716475833298,-2000.0,0.00023679,2]
[327781998,1716475833312,-200.0,0.00023679,2]
[327781999,1716475833322,-2000.0,0.00023679,2]
[327782000,1716475833334,-200.0,0.00023679,2]
[327782001,1716475833344,-1259.86102224,0.00023679,2]
[327782002,1716475833354,-150.0,0.0002368,2]
[327782003,1716475833363,-150.0,0.00023684,2]
[327782004,1716475833372,-300.0,0.00023687,2]
[327782005,1716475833382,-150.0,0.00023688,2]
[327782006,1716475833391,-150.0,0.00023691,2]
[327782007,1716475833401,-150.0,0.00023691,2]
[327782008,1716475833410,-150.0,0.00023691,2]
[327782009,1716475833420,-532.26060115,0.00023695,2]
[327782010,1716475833429,-150.0,0.00023695,2]
[327782011,1716475833439,-159.2,0.00023697,2]
[327782012,1716475833449,-636.72864804,0.00023698,2]
[327782013,1716475833458,-318.10175994,0.00023698,2]
[327782014,1716475833468,-369.67747622,0.00023698,2]
[327782015,1716475833478,-1386.26281017,0.00023698,2]
[327782016,1716475833488,-1500.0,0.00023698,2]
[327782017,1716475833499,-782.6446222,0.00023698,2]
[327782018,1716475833508,-1500.0,0.00023698,2]
[327782019,1716475833519,-206.62364573,0.00023699,2]
[327782020,1716475833528,-44073.3856,0.000237,2]
[327782021,1716475833538,-35547.9943,0.000237,2]
[327782022,1716475833548,-1000.0,0.000237,2]
[327782023,1716475833558,-150.0,0.000237,2]
[327782024,1716475833567,-150.0,0.00023702,2]
[327782025,1716475833576,-150.0,0.00023705,2]
[327782026,1716475833586,-1500.0,0.00023708,2]
[327782027,1716475833595,-150.0,0.00023709,2]
[327782028,1716475833604,-1500.0,0.00023712,2]
[327782029,1716475833613,-150.0,0.00023713,2]
[327782030,1716475833623,-500.0,0.00023716,2]
[327782031,1716475833632,-500.0,0.00023716,2]
[327782032,1716475833641,-500.0,0.00023716,2]
[327782033,1716475833651,-504.02506036,0.00023716,2]
[327782034,1716475833660,-500.0,0.00023716,2]
[327782035,1716475833669,-500.0,0.00023716,2]
[327782036,1716475833679,-500.0,0.00023716,2]
[327782037,1716475833688,-500.0,0.00023716,2]
[327782038,1716475833698,-500.0,0.00023716,2]
[327782039,1716475833708,-500.0,0.00023716,2]
[327782040,1716475833718,-500.0,0.00023716,2]
[327782041,1716475833727,-500.0,0.00023716,2]
[327782042,1716475833736,-508.50367673,0.00023716,2]
[327782043,1716475833747,-512.3735756,0.00023716,2]
[327782044,1716475833757,-500.0,0.00023716,2]
[327782045,1716475833766,-500.0,0.00023716,2]
[327782046,1716475833775,-509.82085872,0.00023716,2]
[327782047,1716475833785,-500.0,0.00023716,2]
[327782048,1716475833795,-505.35078779,0.00023716,2]
[327782049,1716475833805,-502.1129968,0.00023716,2]
[327782050,1716475833817,-500.0,0.00023716,2]
[327782051,1716475833827,-561.63392478,0.00023716,2]
[327782052,1716475833836,-791.82,0.00023716,2]
[327782053,1716475833845,-500.0,0.00023716,2]
[327782054,1716475833854,-502.69,0.00023716,2]
[327782055,1716475833863,-500.0,0.00023716,2]
[327782056,1716475833872,-7150.61,0.00023716,2]
[327782057,1716475833882,-500.0,0.00023716,2]
[327782058,1716475833891,-500.0,0.00023716,2]
[327782059,1716475833901,-500.0,0.00023716,2]
[327782060,1716475833910,-500.0,0.00023716,2]
[327782061,1716475833920,-500.0,0.00023716,2]
[327782062,1716475833929,-500.0,0.00023716,2]
[327782063,1716475833938,-500.0,0.00023716,2]
[327782064,1716475833948,-500.0,0.00023716,2]
[327782065,1716475833957,-500.0,0.00023716,2]
[327782066,1716475833967,-500.0,0.00023716,2]
[327782067,1716475833976,-197.44148969,0.00023716,2]
[327782068,1716475833985,-500.0,0.00023716,2]
[327782069,1716475833995,-500.0,0.00023716,2]
[327782070,1716475834004,-500.0,0.00023716,2]
[327782071,1716475834013,-500.0,0.00023716,2]
[327782072,1716475834023,-500.0,0.00023716,2]
[327782073,1716475834033,-500.0,0.00023716,2]
[327782074,1716475834043,-1426.01,0.00023716,2]
[327782075,1716475834052,-586.1671384,0.00023716,2]
[327782076,1716475834065,-500.0,0.00023716,2]
[327782077,1716475834075,-500.0,0.00023716,2]
[327782078,1716475834085,-506.78427231,0.00023716,2]
[327782079,1716475834094,-504.79308848,0.00023716,2]
[327782080,1716475834104,-508.61114786,0.00023716,2]
[327782081,1716475834114,-500.0,0.00023716,2]
[327782082,1716475834124,-838.12,0.00023716,2]
[327782083,1716475834134,-500.0,0.00023716,2]
[327782084,1716475834145,-500.0,0.00023716,2]
[327782085,1716475834161,-500.0,0.00023716,2]
[327782086,1716475834172,-500.0,0.00023716,2]
[327782087,1716475834183,-500.0,0.00023716,2]
[327782088,1716475834195,-500.0,0.00023716,2]
[327782089,1716475834205,-500.0,0.00023716,2]
[327782090,1716475834215,-1195.55,0.00023716,2]
[327782091,1716475834225,-500.0,0.00023716,2]
[327782092,1716475834234,-500.0,0.00023716,2]
[327782093,1716475834244,-500.0,0.00023716,2]
[327782094,1716475834254,-618.35,0.00023716,2]
[327782095,1716475834263,-500.0,0.00023716,2]
[327782096,1716475834273,-587.23,0.00023716,2]
[327782097,1716475834282,-500.0,0.00023716,2]
[327782098,1716475834291,-500.0,0.00023716,2]
[327782099,1716475834300,-515.48085308,0.00023716,2]
[327782100,1716475834314,-500.0,0.00023716,2]
[327782101,1716475834324,-1473.27,0.00023716,2]
[327782102,1716475834334,-1154.03,0.00023716,2]
[327782103,1716475834344,-500.0,0.00023716,2]
[327782104,1716475834353,-500.0,0.00023716,2]
[327782105,1716475834363,-500.0,0.00023716,2]
[327782106,1716475834372,-407.89495569,0.00023716,2]
[327782107,1716475834382,-648.99,0.00023716,2]
[327782108,1716475834391,-500.0,0.00023716,2]
[327782109,1716475834401,-825.89,0.00023716,2]
[327782110,1716475834409,-500.0,0.00023716,2]
[327782111,1716475834418,-500.0,0.00023716,2]
[327782112,1716475834428,-616.46,0.00023716,2]
[327782113,1716475834438,-500.0,0.00023716,2]
[327782114,1716475834447,-500.0,0.00023716,2]
[327782115,1716475834457,-401.87290761,0.00023716,2]
[327782116,1716475834466,-500.0,0.00023716,2]
[327782117,1716475834475,-500.0,0.00023716,2]
[327782118,1716475834485,-500.0,0.00023716,2]
[327782119,1716475834495,-500.0,0.00023716,2]
[327782120,1716475834505,-906.68,0.00023716,2]
[327782121,1716475834516,-596.37,0.00023716,2]
[327782122,1716475834525,-1224.7,0.00023716,2]
[327782123,1716475834535,-780.2,0.00023716,2]
[327782124,1716475834545,-875.89,0.00023716,2]
[327782125,1716475834554,-655.33,0.00023716,2]
[327782126,1716475834567,-500.0,0.00023717,8]
[327782127,1716475834577,-500.0,0.00023717,8]
[327782128,1716475834587,-501.87,0.00023717,8]
[327782129,1716475834596,-500.0,0.00023717,8]
[327782130,1716475834605,-430.4006544,0.00023717,8]
[327782131,1716475834615,-724.24,0.00023717,8]
[327782132,1716475834624,-500.0,0.00023717,8]
[327782133,1716475834633,-500.0,0.00023717,8]
[327782134,1716475834643,-753.84,0.00023717,8]
[327782135,1716475834652,-620.52,0.00023717,8]
[327782136,1716475834662,-361.48881201,0.00023717,8]
[327782137,1716475834671,-500.0,0.00023717,8]
[327782138,1716475834680,-500.0,0.00023717,8]
[327782139,1716475834690,-479.88120003,0.00023717,8]
[327782140,1716475834700,-500.0,0.00023717,8]
[327782141,1716475834709,-572.13,0.00023717,8]
[327782142,1716475834720,-637.32395763,0.00023717,8]
[327782143,1716475834729,-500.0,0.00023717,8]
[327782144,1716475834739,-500.0,0.00023717,8]
[327782145,1716475834749,-500.0,0.00023717,8]
[327782146,1716475834758,-500.0,0.00023717,8]
[327782147,1716475834768,-500.0,0.00023717,8]
[327782148,1716475834777,-500.0,0.00023717,8]
[327782149,1716475834787,-500.0,0.00023717,8]
[327782150,1716475834796,-500.0,0.00023717,8]
[327782151,1716475834805,-875.49,0.00023717,8]
[327782152,1716475834817,-615.31,0.00023717,8]
[327782153,1716475834826,-358.3340201,0.00023717,8]
[327782154,1716475834835,-500.0,0.00023717,8]
[327782155,1716475834844,-500.0,0.00023717,8]
[327782156,1716475834853,-821.68,0.00023717,8]
[327782157,1716475834861,-500.0,0.00023717,8]
[327782158,1716475834870,-554.32,0.00023717,8]
[327782159,1716475834880,-500.0,0.00023717,8]
[327782160,1716475834889,-575.98,0.00023717,8]
[327782161,1716475834899,-500.0,0.00023717,8]
[327782162,1716475834908,-535.64,0.00023717,8]
[327782163,1716475834919,-500.0,0.00023717,8]
[327782164,1716475834928,-500.0,0.00023717,8]
[327782165,1716475834937,-338.06884613,0.00023717,8]
[327782166,1716475834946,-500.0,0.00023717,8]
[327782167,1716475834956,-500.0,0.00023717,8]
[327782168,1716475834965,-500.0,0.00023717,8]
[327782169,1716475834976,-500.0,0.00023717,8]
[327782170,1716475834985,-500.0,0.00023717,8]
[327782171,1716475834995,-500.0,0.00023717,8]
[327782172,1716475835004,-583.79,0.00023717,8]
[327782173,1716475835014,-500.0,0.00023717,8]
[327782174,1716475835024,-500.0,0.00023717,8]
[327782175,1716475835033,-500.0,0.00023717,8]
[327782176,1716475835043,-500.0,0.00023717,8]
[327782177,1716475835052,-524.65754737,0.00023717,8]
[327782178,1716475835064,-500.0,0.00023717,8]
[327782179,1716475835074,-500.0,0.00023717,8]
[327782180,1716475835084,-629.11372491,0.00023717,8]
[327782181,1716475835094,-500.0,0.00023717,8]
[327782182,1716475835103,-1193.63,0.00023717,8]
[327782183,1716475835113,-1460.84,0.00023717,8]
[327782184,1716475835122,-500.0,0.00023717,8]
[327782185,1716475835131,-500.0,0.00023717,8]
[327782186,1716475835140,-500.0,0.00023717,8]
[327782187,1716475835152,-500.0,0.00023717,8]
[327782188,1716475835162,-500.0,0.00023717,8]
[327782189,1716475835173,-500.0,0.00023717,8]
[327782190,1716475835183,-506.7,0.00023717,8]
[327782191,1716475835192,-500.0,0.00023717,8]
[327782192,1716475835202,-500.0,0.00023717,8]
[327782193,1716475835211,-556.64,0.00023717,8]
[327782194,1716475835220,-500.0,0.00023717,8]
[327782195,1716475835230,-1086.47,0.00023717,8]
[327782196,1716475835240,-500.0,0.00023717,8]
[327782197,1716475835250,-500.0,0.00023717,8]
[327782198,1716475835260,-500.0,0.00023717,8]
[327782199,1716475835269,-1672.47,0.00023717,8]
[327782200,1716475835278,-614.50038071,0.00023717,8]